[Event "Titled Tuesday Blitz December 27 Early 2022"]
[White "Herman, Daniel"]
[Black "Bogaudinov, Rushan"]
[WhiteFideId "30935008"]
[BlackFideId "4129288"]
[WhiteElo "1956"]
[BlackElo "1939"]
[Result "0-1"]
[Round "09"]
[TimeControl "180+2"]
[Date "2022.12.27"]
[WhiteClock "0:00:15"]
[BlackClock "0:00:47"]

1. c4 {[%clk 0:03:00]}  e5 {[%clk 0:02:58]} 2. h3 {[%clk 0:02:58]}  Nf6 {[%clk 0:02:56]} 3. g4 {[%clk 0:02:50]}  Nc6 {[%clk 0:02:48]} 4. Bg2 {[%clk 0:02:49]}  Bc5 {[%clk 0:02:43]} 5. Nc3 {[%clk 0:02:46]}  d6 {[%clk 0:02:41]} 6. d3 {[%clk 0:02:42]}  Be6 {[%clk 0:02:29]} 7. Bg5 {[%clk 0:02:24]}  h6 {[%clk 0:02:28]} 8. Bxf6 {[%clk 0:02:23]}  Qxf6 {[%clk 0:02:27]} 9. Ne4 {[%clk 0:02:24]}  Qe7 {[%clk 0:02:21]} 10. Nxc5 {[%clk 0:02:23]}  dxc5 {[%clk 0:02:22]} 11. Nf3 {[%clk 0:02:16]}  O-O {[%clk 0:02:20]} 12. Qd2 {[%clk 0:02:04]}  e4 {[%clk 0:02:17]} 13. dxe4 {[%clk 0:01:59]}  Bxc4 {[%clk 0:02:16]} 14. O-O {[%clk 0:01:40]}  Qxe4 {[%clk 0:02:09]} 15. Rac1 {[%clk 0:01:36]}  Qxe2 {[%clk 0:02:06]} 16. Qxe2 {[%clk 0:01:35]}  Bxe2 {[%clk 0:02:06]} 17. Rfe1 {[%clk 0:01:35]}  Ba6 {[%clk 0:01:52]} 18. Rxc5 {[%clk 0:01:34]}  Rfe8 {[%clk 0:01:49]} 19. Rcc1 {[%clk 0:01:24]}  Kf8 {[%clk 0:01:46]} 20. Nh4 {[%clk 0:01:23]}  Rxe1+ {[%clk 0:01:45]} 21. Rxe1 {[%clk 0:01:23]}  Re8 {[%clk 0:01:40]} 22. Rxe8+ {[%clk 0:01:18]}  Kxe8 {[%clk 0:01:41]} 23. Nf5 {[%clk 0:01:18]}  Kf8 {[%clk 0:01:34]} 24. Bxc6 {[%clk 0:01:14]}  bxc6 {[%clk 0:01:34]} 25. b4 {[%clk 0:01:14]}  Bc4 {[%clk 0:01:28]} 26. f4 {[%clk 0:01:08]}  Bxa2 {[%clk 0:01:25]} 27. Kf2 {[%clk 0:01:06]}  Be6 {[%clk 0:01:23]} 28. Nd4 {[%clk 0:01:03]}  Bd5 {[%clk 0:01:23]} 29. h4 {[%clk 0:01:00]}  g6 {[%clk 0:01:22]} 30. Ke3 {[%clk 0:00:59]}  Ke7 {[%clk 0:01:21]} 31. g5 {[%clk 0:00:56]}  h5 {[%clk 0:01:21]} 32. f5 {[%clk 0:00:54]}  Kd6 {[%clk 0:01:19]} 33. Ne2 {[%clk 0:00:49]}  c5 {[%clk 0:01:09]} 34. bxc5+ {[%clk 0:00:50]}  Kxc5 {[%clk 0:01:10]} 35. Nf4 {[%clk 0:00:45]}  a5 {[%clk 0:01:07]} 36. fxg6 {[%clk 0:00:41]}  fxg6 {[%clk 0:01:08]} 37. Nxg6 {[%clk 0:00:42]}  a4 {[%clk 0:01:07]} 38. Ne5 {[%clk 0:00:41]}  a3 {[%clk 0:01:03]} 39. Nd3+ {[%clk 0:00:36]}  Kd6 {[%clk 0:01:01]} 40. Nb4 {[%clk 0:00:27]}  a2 {[%clk 0:00:59]} 41. Nc2 {[%clk 0:00:27]}  Ke5 {[%clk 0:00:57]} 42. Na1 {[%clk 0:00:23]}  Kf5 {[%clk 0:00:55]} 43. Kd4 {[%clk 0:00:22]}  c6 {[%clk 0:00:55]} 44. Nc2 {[%clk 0:00:18]}  Kg4 {[%clk 0:00:52]} 45. g6 {[%clk 0:00:16]}  Kxh4 {[%clk 0:00:51]} 46. Ke5 {[%clk 0:00:15]}  Kg5 {[%clk 0:00:48]} 47. g7 {[%clk 0:00:15]}  Kg6 {[%clk 0:00:47]} 0-1


[Site "https://www.chess.com"]

[Event "Titled Tuesday Blitz December 27 Early 2022"]
[White "Jiganchine, Roman"]
[Black "Tymrakiewicz, Rafal"]
[WhiteFideId "2603667"]
[BlackFideId "1108832"]
[WhiteElo "2205"]
[BlackElo "2144"]
[Result "1/2-1/2"]
[Round "09"]
[TimeControl "180+2"]
[Date "2022.12.27"]
[WhiteClock "0:00:09"]
[BlackClock "0:00:06"]

1. e4 {[%clk 0:02:59]}  Nf6 {[%clk 0:02:59]} 2. e5 {[%clk 0:02:55]}  Nd5 {[%clk 0:02:58]} 3. c4 {[%clk 0:02:55]}  Nb6 {[%clk 0:02:58]} 4. c5 {[%clk 0:02:55]}  Nd5 {[%clk 0:02:59]} 5. Nc3 {[%clk 0:02:55]}  c6 {[%clk 0:02:59]} 6. Bc4 {[%clk 0:02:54]}  e6 {[%clk 0:03:00]} 7. d4 {[%clk 0:02:50]}  b6 {[%clk 0:03:00]} 8. cxb6 {[%clk 0:02:37]}  Qxb6 {[%clk 0:03:01]} 9. Nf3 {[%clk 0:02:37]}  Ba6 {[%clk 0:02:59]} 10. Bxa6 {[%clk 0:02:33]}  Nxa6 {[%clk 0:02:56]} 11. O-O {[%clk 0:02:32]}  Be7 {[%clk 0:02:56]} 12. Ne4 {[%clk 0:02:28]}  O-O {[%clk 0:02:48]} 13. a3 {[%clk 0:02:27]}  f5 {[%clk 0:02:43]} 14. exf6 {[%clk 0:02:17]}  Nxf6 {[%clk 0:02:42]} 15. Qe2 {[%clk 0:02:06]}  Nc7 {[%clk 0:02:37]} 16. Nc3 {[%clk 0:01:56]}  Ncd5 {[%clk 0:02:28]} 17. Rd1 {[%clk 0:01:52]}  a5 {[%clk 0:02:22]} 18. Ne5 {[%clk 0:01:49]}  Ra7 {[%clk 0:02:10]} 19. Be3 {[%clk 0:01:48]}  Rb8 {[%clk 0:02:05]} 20. Rd2 {[%clk 0:01:32]}  Qb3 {[%clk 0:02:04]} 21. Nxd5 {[%clk 0:01:24]}  Nxd5 {[%clk 0:02:03]} 22. Re1 {[%clk 0:01:06]}  Bf6 {[%clk 0:01:59]} 23. Nd3 {[%clk 0:00:56]}  Qc4 {[%clk 0:01:45]} 24. Qg4 {[%clk 0:00:50]}  a4 {[%clk 0:01:10]} 25. h3 {[%clk 0:00:50]}  Rab7 {[%clk 0:01:06]} 26. Nc5 {[%clk 0:00:47]}  Ra7 {[%clk 0:01:03]} 27. Qe4 {[%clk 0:00:31]}  Kh8 {[%clk 0:00:54]} 28. h4 {[%clk 0:00:27]}  Ne7 {[%clk 0:00:54]} 29. h5 {[%clk 0:00:23]}  Qd5 {[%clk 0:00:54]} 30. Qg4 {[%clk 0:00:22]}  Qf5 {[%clk 0:00:54]} 31. Qxf5 {[%clk 0:00:18]}  Nxf5 {[%clk 0:00:54]} 32. g4 {[%clk 0:00:16]}  Nd6 {[%clk 0:00:47]} 33. Kg2 {[%clk 0:00:15]}  h6 {[%clk 0:00:40]} 34. Rc2 {[%clk 0:00:14]}  Kg8 {[%clk 0:00:27]} 35. f3 {[%clk 0:00:14]}  Kf8 {[%clk 0:00:27]} 36. Rd1 {[%clk 0:00:14]}  Ke8 {[%clk 0:00:26]} 37. Nd3 {[%clk 0:00:13]}  Nf7 {[%clk 0:00:25]} 38. d5 {[%clk 0:00:13]}  Ra6 {[%clk 0:00:18]} 39. dxe6 {[%clk 0:00:10]}  dxe6 {[%clk 0:00:19]} 40. Nc5 {[%clk 0:00:11]}  Rab6 {[%clk 0:00:17]} 41. Nxe6 {[%clk 0:00:10]}  Rxb2 {[%clk 0:00:17]} 42. Rdd2 {[%clk 0:00:09]}  Rxc2 {[%clk 0:00:17]} 43. Rxc2 {[%clk 0:00:10]}  Kd7 {[%clk 0:00:17]} 44. Nc5+ {[%clk 0:00:09]}  Kd6 {[%clk 0:00:17]} 45. Ne4+ {[%clk 0:00:09]}  Kd7 {[%clk 0:00:15]} 46. Nc5+ {[%clk 0:00:09]}  Ke8 {[%clk 0:00:15]} 47. Ne4 {[%clk 0:00:09]}  Be5 {[%clk 0:00:14]} 48. Rxc6 {[%clk 0:00:08]}  Rb2+ {[%clk 0:00:14]} 49. Kf1 {[%clk 0:00:07]}  Kd7 {[%clk 0:00:13]} 50. Ra6 {[%clk 0:00:07]}  Rb3 {[%clk 0:00:13]} 51. Ke2 {[%clk 0:00:06]}  Rxa3 {[%clk 0:00:14]} 52. Nc5+ {[%clk 0:00:05]}  Ke8 {[%clk 0:00:11]} 53. Ra8+ {[%clk 0:00:04]}  Ke7 {[%clk 0:00:11]} 54. Ra7+ {[%clk 0:00:04]}  Kf6 {[%clk 0:00:11]} 55. Ra6+ {[%clk 0:00:04]}  Ke7 {[%clk 0:00:11]} 56. Ra7+ {[%clk 0:00:04]}  Kd8 {[%clk 0:00:10]} 57. Ra8+ {[%clk 0:00:04]}  Kc7 {[%clk 0:00:10]} 58. Ra7+ {[%clk 0:00:04]}  Kc6 {[%clk 0:00:10]} 59. Rxf7 {[%clk 0:00:05]}  Rxe3+ {[%clk 0:00:07]} 60. Kxe3 {[%clk 0:00:04]}  Kxc5 {[%clk 0:00:08]} 61. Ke4 {[%clk 0:00:05]}  Bb2 {[%clk 0:00:07]} 62. Rb7 {[%clk 0:00:04]}  a3 {[%clk 0:00:07]} 63. Ra7 {[%clk 0:00:05]}  Kb4 {[%clk 0:00:06]} 64. f4 {[%clk 0:00:05]}  Kb3 {[%clk 0:00:06]} 65. g5 {[%clk 0:00:05]}  a2 {[%clk 0:00:06]} 66. gxh6 {[%clk 0:00:03]}  gxh6 {[%clk 0:00:07]} 67. Kf5 {[%clk 0:00:04]}  a1=Q {[%clk 0:00:07]} 68. Rxa1 {[%clk 0:00:04]}  Bxa1 {[%clk 0:00:07]} 69. Kg6 {[%clk 0:00:05]}  Kc4 {[%clk 0:00:07]} 70. Kxh6 {[%clk 0:00:05]}  Kd5 {[%clk 0:00:08]} 71. Kg6 {[%clk 0:00:06]}  Ke6 {[%clk 0:00:08]} 72. f5+ {[%clk 0:00:07]}  Ke7 {[%clk 0:00:08]} 73. h6 {[%clk 0:00:08]}  Kf8 {[%clk 0:00:08]} 74. f6 {[%clk 0:00:08]}  Bxf6 {[%clk 0:00:05]} 75. Kxf6 {[%clk 0:00:07]}  Kg8 {[%clk 0:00:05]} 76. Kg6 {[%clk 0:00:08]}  Kh8 {[%clk 0:00:06]} 77. h7 {[%clk 0:00:09]} 1/2-1/2


[Site "https://www.chess.com"]

[Event "Titled Tuesday Blitz December 27 Early 2022"]
[White "Jimenez, Joaquin"]
[Black "Diaz, Fernando"]
[WhiteFideId "109860"]
[BlackFideId "3701255"]
[WhiteElo "2195"]
[BlackElo "2121"]
[Result "1-0"]
[Round "09"]
[TimeControl "180+2"]
[Date "2022.12.27"]
[WhiteClock "0:00:06"]
[BlackClock "0:00:06"]

1. e4 {[%clk 0:03:00]}  e6 {[%clk 0:02:53]} 2. d4 {[%clk 0:03:00]}  d5 {[%clk 0:02:53]} 3. Nd2 {[%clk 0:03:00]}  Nf6 {[%clk 0:02:53]} 4. e5 {[%clk 0:03:00]}  Nfd7 {[%clk 0:02:53]} 5. Bd3 {[%clk 0:03:00]}  c5 {[%clk 0:02:53]} 6. c3 {[%clk 0:03:00]}  Nc6 {[%clk 0:02:53]} 7. Ne2 {[%clk 0:02:59]}  cxd4 {[%clk 0:02:50]} 8. cxd4 {[%clk 0:03:00]}  f6 {[%clk 0:02:50]} 9. Nf4 {[%clk 0:03:00]}  Nxd4 {[%clk 0:02:49]} 10. Qh5+ {[%clk 0:03:00]}  Ke7 {[%clk 0:02:48]} 11. Ng6+ {[%clk 0:02:58]}  hxg6 {[%clk 0:02:49]} 12. exf6+ {[%clk 0:02:58]}  Nxf6 {[%clk 0:02:47]} 13. Qxh8 {[%clk 0:02:58]}  Kf7 {[%clk 0:02:47]} 14. f4 {[%clk 0:02:58]}  Qb6 {[%clk 0:02:35]} 15. O-O {[%clk 0:02:57]}  Nc2+ {[%clk 0:02:27]} 16. Kh1 {[%clk 0:02:57]}  Nxa1 {[%clk 0:02:24]} 17. Nf3 {[%clk 0:02:53]}  Ke8 {[%clk 0:01:32]} 18. Bxg6+ {[%clk 0:02:39]}  Ke7 {[%clk 0:01:20]} 19. b3 {[%clk 0:02:27]}  Nc2 {[%clk 0:01:14]} 20. Bxc2 {[%clk 0:02:23]}  Qc5 {[%clk 0:01:13]} 21. Bd3 {[%clk 0:02:09]}  Bd7 {[%clk 0:01:09]} 22. Ne5 {[%clk 0:02:03]}  Bc6 {[%clk 0:01:06]} 23. f5 {[%clk 0:01:32]}  d4 {[%clk 0:00:34]} 24. Bf4 {[%clk 0:01:18]}  Rd8 {[%clk 0:00:29]} 25. fxe6 {[%clk 0:01:11]}  Be8 {[%clk 0:00:26]} 26. Qh3 {[%clk 0:01:05]}  Rd5 {[%clk 0:00:23]} 27. Nc4 {[%clk 0:00:51]}  b5 {[%clk 0:00:20]} 28. Nd2 {[%clk 0:00:40]}  Rh5 {[%clk 0:00:20]} 29. Qg3 {[%clk 0:00:36]}  Bc6 {[%clk 0:00:19]} 30. Nf3 {[%clk 0:00:28]}  Qd5 {[%clk 0:00:18]} 31. Rc1 {[%clk 0:00:22]}  a6 {[%clk 0:00:16]} 32. Qf2 {[%clk 0:00:15]}  Ne4 {[%clk 0:00:14]} 33. Bxe4 {[%clk 0:00:15]}  Qxe4 {[%clk 0:00:15]} 34. Bg3 {[%clk 0:00:12]}  Rd5 {[%clk 0:00:14]} 35. Re1 {[%clk 0:00:12]}  Qg6 {[%clk 0:00:13]} 36. Bh4+ {[%clk 0:00:12]}  Kd6 {[%clk 0:00:10]} 37. e7 {[%clk 0:00:12]}  Bxe7 {[%clk 0:00:09]} 38. Bxe7+ {[%clk 0:00:12]}  Kc7 {[%clk 0:00:09]} 39. Qg3+ {[%clk 0:00:11]}  Qxg3 {[%clk 0:00:08]} 40. hxg3 {[%clk 0:00:12]}  d3 {[%clk 0:00:09]} 41. Rd1 {[%clk 0:00:11]}  Rh5+ {[%clk 0:00:05]} 42. Kg1 {[%clk 0:00:11]}  g5 {[%clk 0:00:06]} 43. Rxd3 {[%clk 0:00:09]}  g4 {[%clk 0:00:06]} 44. Nh4 {[%clk 0:00:08]}  Re5 {[%clk 0:00:06]} 45. Bd6+ {[%clk 0:00:06]} 1-0


[Site "https://www.chess.com"]

[Event "Titled Tuesday Blitz December 27 Early 2022"]
[White "Kamsky, Gata"]
[Black "Weetik, Vjacheslav"]
[WhiteFideId "2000024"]
[BlackFideId "4153472"]
[WhiteElo "2665"]
[BlackElo "2423"]
[Result "1-0"]
[Round "09"]
[TimeControl "180+2"]
[Date "2022.12.27"]
[WhiteClock "0:02:09"]
[BlackClock "0:01:14"]

1. d4 {[%clk 0:03:00]}  d5 {[%clk 0:02:54]} 2. Bf4 {[%clk 0:02:59]}  c5 {[%clk 0:02:54]} 3. e3 {[%clk 0:02:59]}  Nc6 {[%clk 0:02:55]} 4. c3 {[%clk 0:02:58]}  Qb6 {[%clk 0:02:55]} 5. Qb3 {[%clk 0:02:57]}  c4 {[%clk 0:02:55]} 6. Qc2 {[%clk 0:02:57]}  e5 {[%clk 0:02:56]} 7. Bxe5 {[%clk 0:02:56]}  Bf5 {[%clk 0:02:52]} 8. Qc1 {[%clk 0:02:56]}  Nxe5 {[%clk 0:02:51]} 9. dxe5 {[%clk 0:02:56]}  f6 {[%clk 0:02:51]} 10. e6 {[%clk 0:02:56]}  Qxe6 {[%clk 0:02:44]} 11. Nf3 {[%clk 0:02:55]}  Bc5 {[%clk 0:02:44]} 12. Nbd2 {[%clk 0:02:48]}  Ne7 {[%clk 0:02:30]} 13. Be2 {[%clk 0:02:47]}  g5 {[%clk 0:02:13]} 14. b3 {[%clk 0:02:36]}  cxb3 {[%clk 0:01:55]} 15. Nxb3 {[%clk 0:02:34]}  Bb6 {[%clk 0:01:50]} 16. Nfd4 {[%clk 0:02:30]}  Qd6 {[%clk 0:01:44]} 17. Nxf5 {[%clk 0:02:26]}  Nxf5 {[%clk 0:01:44]} 18. Bb5+ {[%clk 0:02:24]}  Kf8 {[%clk 0:01:39]} 19. O-O {[%clk 0:02:23]}  Kg7 {[%clk 0:01:30]} 20. Qc2 {[%clk 0:02:19]}  Qe5 {[%clk 0:01:25]} 21. Rad1 {[%clk 0:02:17]}  Rac8 {[%clk 0:01:25]} 22. Bd7 {[%clk 0:02:15]}  Rxc3 {[%clk 0:01:23]} 23. Qxf5 {[%clk 0:02:15]}  Qxf5 {[%clk 0:01:22]} 24. Bxf5 {[%clk 0:02:14]}  Rd8 {[%clk 0:01:23]} 25. Nd4 {[%clk 0:02:11]}  Kf7 {[%clk 0:01:14]} 26. Bxh7 {[%clk 0:02:09]} 1-0


[Site "https://www.chess.com"]

[Event "Titled Tuesday Blitz December 27 Early 2022"]
[White "Kazancev, Valerij M"]
[Black "Royal, Shreyas"]
[WhiteFideId "4179609"]
[BlackFideId "448869"]
[WhiteElo "2313"]
[BlackElo "2438"]
[Result "0-1"]
[Round "09"]
[TimeControl "180+2"]
[Date "2022.12.27"]
[WhiteClock "0:01:20"]
[BlackClock "0:01:47"]

1. c4 {[%clk 0:02:57]}  c6 {[%clk 0:02:58]} 2. Nf3 {[%clk 0:02:57]}  d5 {[%clk 0:02:59]} 3. g3 {[%clk 0:02:57]}  Nf6 {[%clk 0:02:59]} 4. Bg2 {[%clk 0:02:58]}  g6 {[%clk 0:03:00]} 5. O-O {[%clk 0:02:58]}  Bg7 {[%clk 0:03:00]} 6. b3 {[%clk 0:02:59]}  Ne4 {[%clk 0:02:58]} 7. d4 {[%clk 0:02:59]}  O-O {[%clk 0:02:58]} 8. Bb2 {[%clk 0:02:59]}  Nd7 {[%clk 0:02:56]} 9. Qc2 {[%clk 0:02:58]}  Qc7 {[%clk 0:02:56]} 10. cxd5 {[%clk 0:02:55]}  Ndf6 {[%clk 0:02:55]} 11. dxc6 {[%clk 0:02:51]}  Bf5 {[%clk 0:02:54]} 12. Qd1 {[%clk 0:02:41]}  bxc6 {[%clk 0:02:54]} 13. Nh4 {[%clk 0:02:40]}  Be6 {[%clk 0:02:51]} 14. Nd2 {[%clk 0:02:30]}  Bd5 {[%clk 0:02:51]} 15. Nc4 {[%clk 0:02:14]}  Rad8 {[%clk 0:02:46]} 16. Qc1 {[%clk 0:02:07]}  Ng4 {[%clk 0:02:25]} 17. f3 {[%clk 0:01:59]}  Nxg3 {[%clk 0:02:23]} 18. hxg3 {[%clk 0:01:34]}  Qxg3 {[%clk 0:02:24]} 19. fxg4 {[%clk 0:01:35]}  Qxh4 {[%clk 0:02:14]} 20. Qf4 {[%clk 0:01:28]}  Bh6 {[%clk 0:01:56]} 21. g5 {[%clk 0:01:18]}  Qxf4 {[%clk 0:01:47]} 22. Rxf4 {[%clk 0:01:19]}  Bxg5 {[%clk 0:01:47]} 23. Rh4 {[%clk 0:01:20]}  Bxh4 {[%clk 0:01:47]} 0-1


[Site "https://www.chess.com"]

[Event "Titled Tuesday Blitz December 27 Early 2022"]
[White "Kho, Darrell"]
[Black "De Souza, Cristiano Gomes"]
[WhiteFideId "1019317"]
[BlackFideId "2151758"]
[WhiteElo "2075"]
[BlackElo "2018"]
[Result "0-1"]
[Round "09"]
[TimeControl "180+2"]
[Date "2022.12.27"]
[WhiteClock "0:01:07"]
[BlackClock "0:02:32"]

1. e4 {[%clk 0:02:46]}  c5 {[%clk 0:02:58]} 2. Nf3 {[%clk 0:02:45]}  d6 {[%clk 0:02:58]} 3. Bb5+ {[%clk 0:02:45]}  Bd7 {[%clk 0:02:58]} 4. Bxd7+ {[%clk 0:02:45]}  Qxd7 {[%clk 0:02:59]} 5. c4 {[%clk 0:02:45]}  Nc6 {[%clk 0:03:00]} 6. Nc3 {[%clk 0:02:45]}  g6 {[%clk 0:03:00]} 7. d4 {[%clk 0:02:44]}  cxd4 {[%clk 0:03:00]} 8. Nxd4 {[%clk 0:02:45]}  Bg7 {[%clk 0:03:00]} 9. Be3 {[%clk 0:02:45]}  Nf6 {[%clk 0:03:00]} 10. O-O {[%clk 0:02:44]}  O-O {[%clk 0:03:00]} 11. f3 {[%clk 0:02:38]}  a5 {[%clk 0:02:57]} 12. Qd2 {[%clk 0:02:36]}  Nxd4 {[%clk 0:02:57]} 13. Bxd4 {[%clk 0:02:36]}  Qc6 {[%clk 0:02:58]} 14. Nd5 {[%clk 0:02:31]}  Nxd5 {[%clk 0:02:57]} 15. cxd5 {[%clk 0:02:29]}  Bxd4+ {[%clk 0:02:55]} 16. Qxd4 {[%clk 0:02:28]}  Qc5 {[%clk 0:02:55]} 17. Qxc5 {[%clk 0:02:24]}  dxc5 {[%clk 0:02:56]} 18. Rfc1 {[%clk 0:02:23]}  Rfc8 {[%clk 0:02:56]} 19. a4 {[%clk 0:02:18]}  b6 {[%clk 0:02:54]} 20. Rc2 {[%clk 0:02:17]}  Rd8 {[%clk 0:02:51]} 21. Kf2 {[%clk 0:02:16]}  Kg7 {[%clk 0:02:51]} 22. Ke3 {[%clk 0:02:16]}  Kf6 {[%clk 0:02:51]} 23. f4 {[%clk 0:02:15]}  e6 {[%clk 0:02:51]} 24. e5+ {[%clk 0:02:15]}  Kf5 {[%clk 0:02:51]} 25. d6 {[%clk 0:02:05]}  f6 {[%clk 0:02:49]} 26. exf6 {[%clk 0:01:20]}  Rxd6 {[%clk 0:02:49]} 27. Re1 {[%clk 0:01:15]}  Rad8 {[%clk 0:02:46]} 28. Kf3 {[%clk 0:01:09]}  Rd3+ {[%clk 0:02:45]} 29. Kf2 {[%clk 0:01:10]}  Rd2+ {[%clk 0:02:41]} 30. Re2 {[%clk 0:01:10]}  Rxe2+ {[%clk 0:02:37]} 31. Rxe2 {[%clk 0:01:11]}  Kxf6 {[%clk 0:02:37]} 32. g4 {[%clk 0:01:11]}  Rd4 {[%clk 0:02:34]} 33. Kg3 {[%clk 0:01:08]}  Rxa4 {[%clk 0:02:33]} 34. g5+ {[%clk 0:01:09]}  Kf7 {[%clk 0:02:33]} 35. Rd2 {[%clk 0:01:07]}  Ke7 {[%clk 0:02:32]} 0-1


[Site "https://www.chess.com"]

[Event "Titled Tuesday Blitz December 27 Early 2022"]
[White "Khoroshev, Nikita"]
[Black "Andreev, Konstantin"]
[WhiteFideId "14200287"]
[BlackFideId "24239305"]
[WhiteElo "2336"]
[BlackElo "2195"]
[Result "1-0"]
[Round "09"]
[TimeControl "180+2"]
[Date "2022.12.27"]
[WhiteClock "0:02:18"]
[BlackClock "0:02:03"]

1. d4 {[%clk 0:03:00]}  Nf6 {[%clk 0:02:54]} 2. c4 {[%clk 0:03:01]}  e6 {[%clk 0:02:53]} 3. Nf3 {[%clk 0:03:01]}  d5 {[%clk 0:02:53]} 4. Nc3 {[%clk 0:03:01]}  dxc4 {[%clk 0:02:52]} 5. a4 {[%clk 0:02:58]}  c5 {[%clk 0:02:48]} 6. e3 {[%clk 0:02:58]}  Nc6 {[%clk 0:02:46]} 7. Bxc4 {[%clk 0:02:58]}  cxd4 {[%clk 0:02:46]} 8. exd4 {[%clk 0:02:59]}  Bb4 {[%clk 0:02:44]} 9. O-O {[%clk 0:02:59]}  O-O {[%clk 0:02:44]} 10. d5 {[%clk 0:02:53]}  exd5 {[%clk 0:02:33]} 11. Nxd5 {[%clk 0:02:54]}  Nxd5 {[%clk 0:02:34]} 12. Bxd5 {[%clk 0:02:54]}  Ne7 {[%clk 0:02:34]} 13. Be4 {[%clk 0:02:48]}  Qc7 {[%clk 0:02:22]} 14. Bg5 {[%clk 0:02:43]}  Be6 {[%clk 0:02:17]} 15. Qd4 {[%clk 0:02:25]}  Bc5 {[%clk 0:02:08]} 16. Rac1 {[%clk 0:02:20]}  Bb6 {[%clk 0:02:05]} 17. Rxc7 {[%clk 0:02:19]}  Bxd4 {[%clk 0:02:03]} 18. Nxd4 {[%clk 0:02:18]} 1-0


[Site "https://www.chess.com"]

[Event "Titled Tuesday Blitz December 27 Early 2022"]
[White "Larina, Maria"]
[Black "Mohammadian, Mohammad"]
[WhiteFideId "24113182"]
[BlackFideId "12566055"]
[WhiteElo "1948"]
[BlackElo "1398"]
[Result "0-1"]
[Round "09"]
[TimeControl "180+2"]
[Date "2022.12.27"]
[WhiteClock "0:00:10"]
[BlackClock "0:01:28"]

1. e4 {[%clk 0:03:00]}  e5 {[%clk 0:02:58]} 2. Nf3 {[%clk 0:03:00]}  Nc6 {[%clk 0:02:56]} 3. Nc3 {[%clk 0:02:59]}  Nf6 {[%clk 0:02:55]} 4. Bb5 {[%clk 0:02:59]}  d6 {[%clk 0:02:54]} 5. d4 {[%clk 0:02:59]}  exd4 {[%clk 0:02:54]} 6. Nxd4 {[%clk 0:02:59]}  Bd7 {[%clk 0:02:54]} 7. Bxc6 {[%clk 0:02:59]}  bxc6 {[%clk 0:02:51]} 8. Qf3 {[%clk 0:02:59]}  Be7 {[%clk 0:02:50]} 9. e5 {[%clk 0:02:57]}  dxe5 {[%clk 0:02:50]} 10. Nxc6 {[%clk 0:02:56]}  Bxc6 {[%clk 0:02:50]} 11. Qxc6+ {[%clk 0:02:57]}  Nd7 {[%clk 0:02:47]} 12. O-O {[%clk 0:02:40]}  O-O {[%clk 0:02:46]} 13. Rd1 {[%clk 0:02:37]}  Bd6 {[%clk 0:02:45]} 14. Nb5 {[%clk 0:02:35]}  Rb8 {[%clk 0:02:29]} 15. Be3 {[%clk 0:02:23]}  Nb6 {[%clk 0:02:13]} 16. Nxd6 {[%clk 0:02:14]}  cxd6 {[%clk 0:02:12]} 17. Rxd6 {[%clk 0:02:10]}  Qh4 {[%clk 0:02:09]} 18. g3 {[%clk 0:02:08]}  Qg4 {[%clk 0:02:08]} 19. f3 {[%clk 0:01:34]}  Qb4 {[%clk 0:02:02]} 20. b3 {[%clk 0:00:17]}  Rbc8 {[%clk 0:01:52]} 21. a3 {[%clk 0:00:13]}  Rxc6 {[%clk 0:01:51]} 22. axb4 {[%clk 0:00:12]}  Rxc2 {[%clk 0:01:44]} 23. Rxa7 {[%clk 0:00:12]}  Nc8 {[%clk 0:01:38]} 24. Rda6 {[%clk 0:00:11]}  Nxa7 {[%clk 0:01:37]} 25. Rxa7 {[%clk 0:00:12]}  Rb2 {[%clk 0:01:33]} 26. b5 {[%clk 0:00:10]}  Rxb3 {[%clk 0:01:33]} 27. b6 {[%clk 0:00:10]}  Rb8 {[%clk 0:01:31]} 28. b7 {[%clk 0:00:10]}  R3xb7 {[%clk 0:01:28]} 0-1


[Site "https://www.chess.com"]

[Event "Titled Tuesday Blitz December 27 Early 2022"]
[White "Makarian, Rudik"]
[Black "Mikhailovsky, Vladimir"]
[WhiteFideId "44105681"]
[BlackFideId "34105414"]
[WhiteElo "2545"]
[BlackElo "2215"]
[Result "1-0"]
[Round "09"]
[TimeControl "180+2"]
[Date "2022.12.27"]
[WhiteClock "0:00:09"]
[BlackClock "0:00:03"]

1. d4 {[%clk 0:03:00]}  d6 {[%clk 0:02:58]} 2. Nf3 {[%clk 0:03:00]}  Nf6 {[%clk 0:02:58]} 3. c4 {[%clk 0:03:00]}  g6 {[%clk 0:02:58]} 4. Nc3 {[%clk 0:02:59]}  Bf5 {[%clk 0:02:59]} 5. Qb3 {[%clk 0:02:52]}  Qc8 {[%clk 0:02:57]} 6. h3 {[%clk 0:02:53]}  Bg7 {[%clk 0:02:36]} 7. g4 {[%clk 0:02:51]}  Bd7 {[%clk 0:02:36]} 8. Bg2 {[%clk 0:02:51]}  Nc6 {[%clk 0:02:35]} 9. Qd1 {[%clk 0:02:31]}  O-O {[%clk 0:02:33]} 10. Bg5 {[%clk 0:02:24]}  e5 {[%clk 0:02:15]} 11. dxe5 {[%clk 0:01:54]}  Nxe5 {[%clk 0:02:14]} 12. Nxe5 {[%clk 0:01:31]}  dxe5 {[%clk 0:02:14]} 13. Qd2 {[%clk 0:01:31]}  c6 {[%clk 0:01:51]} 14. O-O-O {[%clk 0:01:29]}  Be6 {[%clk 0:01:51]} 15. c5 {[%clk 0:01:12]}  Nd5 {[%clk 0:01:33]} 16. Nxd5 {[%clk 0:00:51]}  cxd5 {[%clk 0:01:32]} 17. Bxd5 {[%clk 0:00:52]}  Qxc5+ {[%clk 0:01:32]} 18. Kb1 {[%clk 0:00:52]}  Bxd5 {[%clk 0:01:15]} 19. Qxd5 {[%clk 0:00:53]}  Qxf2 {[%clk 0:01:16]} 20. Be7 {[%clk 0:00:51]}  Qxe2 {[%clk 0:00:34]} 21. Bxf8 {[%clk 0:00:50]}  Rxf8 {[%clk 0:00:35]} 22. Qxb7 {[%clk 0:00:48]}  a5 {[%clk 0:00:27]} 23. Rhe1 {[%clk 0:00:39]}  Qh2 {[%clk 0:00:21]} 24. Qf3 {[%clk 0:00:37]}  e4 {[%clk 0:00:16]} 25. Re2 {[%clk 0:00:35]}  exf3 {[%clk 0:00:04]} 26. Rxh2 {[%clk 0:00:35]}  f5 {[%clk 0:00:04]} 27. g5 {[%clk 0:00:24]}  h6 {[%clk 0:00:04]} 28. h4 {[%clk 0:00:22]}  hxg5 {[%clk 0:00:03]} 29. hxg5 {[%clk 0:00:23]}  Be5 {[%clk 0:00:02]} 30. Rf2 {[%clk 0:00:21]}  Bg3 {[%clk 0:00:03]} 31. Rxf3 {[%clk 0:00:21]}  f4 {[%clk 0:00:04]} 32. Rd6 {[%clk 0:00:17]}  Kg7 {[%clk 0:00:03]} 33. Rd5 {[%clk 0:00:14]}  Re8 {[%clk 0:00:03]} 34. Rxa5 {[%clk 0:00:12]}  Kf7 {[%clk 0:00:02]} 35. a4 {[%clk 0:00:10]}  Re1+ {[%clk 0:00:02]} 36. Ka2 {[%clk 0:00:11]}  Re2 {[%clk 0:00:03]} 37. Rb5 {[%clk 0:00:10]}  Re4 {[%clk 0:00:04]} 38. Ka3 {[%clk 0:00:10]}  Be1 {[%clk 0:00:02]} 39. a5 {[%clk 0:00:09]}  Bd2 {[%clk 0:00:03]} 40. a6 {[%clk 0:00:09]}  Re6 {[%clk 0:00:03]} 41. Rb7+ {[%clk 0:00:08]}  Ke8 {[%clk 0:00:04]} 42. a7 {[%clk 0:00:09]}  Ra6+ {[%clk 0:00:04]} 43. Kb3 {[%clk 0:00:09]}  Be3 {[%clk 0:00:03]} 44. Rb8+ {[%clk 0:00:09]} 1-0


[Site "https://www.chess.com"]